[Event "Charlotte CC Fall GM-ALTO 2024"]
[Site "Charlotte"]
[Date "2024.11.25"]
[Round "6.2"]
[White "Gedajlovic, Max"]
[Black "Fernandez, Daniel Howard"]
[Result "0-1"]
[ECO "B40"]
[WhiteElo "2377"]
[BlackElo "2503"]
[Annotator "TA"]
[PlyCount "132"]
[EventDate "2024.11.22"]
[EventType "tourn"]
[EventCountry "USA"]
[SourceTitle "playchess.com"]
[Source "ChessBase"]
[SourceQuality "1"]
[TimeControl "5400+30"]

{[%evp 39,132,268,250,68,301,296,299,299,241,119,108,107,305,165,159,155,162,164,161,141,153,142,142,126,167,156,166,162,162,154,159,151,159,84,104,52,52,51,52,0,0,0,0,0,0,-10,-10,-27,-27,-27,-16,-13,-2,-9,-9,-29,0,-27,-27,-27,-27,-27,-28,-141,-75,-75,-75,-97,-97,-100,-41,-41,-41,-41,-41,-69,-45,-66,-58,-60,-61,-345,-327,-29979,-29980,-29980,-29981,-29981,-29982,-29982,-29983,-29983,-29984,-29984,-29985]} 1. e4 {[%emt 0:00:06]} c5 {[%emt 0:09:17]} 2. Nf3 {[%emt 0:00:10]} e6 {[%emt 0:00:13]} 3. g3 {[%emt 0:01:43]} b6 {[%emt 0:01:52]} 4. Bg2 {[%emt 0:01:12]} Bb7 {[%emt 0:00:02]} 5. Nc3 {[%emt 0:01:08]} Nf6 {[%emt 0:02:28]} 6. e5 {[%emt 0:01:56] B40: Sicilian: 2...e6, Unusual lines.} Nd5 {[%emt 0:00:23]} 7. O-O {[%emt 0:02:18]} d6 {[%emt 1:19:45]} 8. Ne4 {[%emt 0:04:30]} dxe5 {[%emt 0:00:00]} 9. Nxe5 {[%emt 0:00:14]} Qc7 {[%emt 0:00:00]} 10. d4 {[%emt 0:09:23]} cxd4 {[%emt 0:00:00]} 11. Qxd4 {[%emt 0:01:22]} f6 $146 {[%emt 0:00:00]} ({Predecessor:} 11... Qxc2 12. Nxf7 Nc6 13. Ned6+ Kd7 14. Qc4 Qxc4 15. Nxc4 Rg8 16. Rd1 Bc5 17. Ng5 Nd4 {1-0 Zvjaginsev,V (2643)-Drygalov,A (2430) Cheliabinsk Kurnosov Memorial rapid 2017 (11)}) 12. Qa4+ {[%emt 0:02:07]} Nc6 {[%emt 0:00:00]} 13. Nd3 {[%emt 0:05:44]} Kf7 {[%emt 0:00:00]} 14. c3 {[%emt 0:05:05]} Be7 {[%emt 0:00:00]} 15. Nf4 {[%emt 0:02:58]} Ne5 {[%emt 0:00:00]} 16. Re1 {[%emt 0:04:18]} g5 {[%emt 0:00:00]} 17. Ne2 {[%emt 0:20:51]} h6 {[%emt 0:00:00]} 18. Nd4 {[%emt 0:01:41]} f5 {[%emt 0:00:00]} 19. Nd2 {[%emt 0:00:45]} a6 {[%emt 0:00:00]} 20. N2f3 {[%emt 0:02:42]} (20. c4 $6 Nf4 $18) 20... Bf6 {[%emt 0:00:00]} 21. Qd1 $2 {[%emt 0:07:07]} (21. Rxe5 $1 $18 Bxe5 22. Nxe5+ Qxe5 23. Qd7+ Kg6 24. Qxb7) 21... Rad8 $2 {[%emt 0:00:00]} (21... Nxf3+ $14 22. Bxf3 Bxd4 23. Bh5+ (23. cxd4 Rac8 $14) (23. Qxd4 Nf6 $11) 23... Ke7 24. Qxd4 (24. cxd4 Rac8 $14) 24... Nf6 25. Qb4+ Qd6 26. Qxd6+ Kxd6) 22. Nxe5+ $18 {[%emt 0:01:04]} Bxe5 {[%emt 0:00:00]} 23. Qh5+ $1 {[%emt 0:00:42]} Kf6 {[%emt 0:00:00]} 24. h4 {[%emt 0:01:44]} (24. Rxe5 $18 {has better winning chances.} Qxe5 25. Bd2) 24... Bxd4 $16 {[%emt 0:00:00]} 25. cxd4 {[%emt 0:03:22]} (25. hxg5+ $6 hxg5 26. Qxg5+ Kf7 27. cxd4 Qc8 $14 (27... Rdg8 28. Qd2 $17)) 25... g4 $2 {[%emt 0:00:00]} (25... Rde8 $16) 26. Bxd5 {[%emt 0:04:34]} (26. Bxh6 $142 {Threatening mate with Qg5+.} Rdg8 27. Re5) 26... Bxd5 $18 {[%emt 0:00:00]} 27. Bf4 $1 {[%emt 0:00:29]} (27. Bxh6 $2 Rdg8 28. a4 Qd7 $19) 27... Qh7 {[%emt 0:00:00]} 28. Rac1 {[%emt 0:05:21]} Ke7 {[%emt 0:00:00]} 29. Rc7+ {[%emt 0:00:38]} Rd7 {[%emt 0:00:00]} 30. Rec1 {[%emt 0:01:04]} Qg8 {[%emt 0:00:00]} 31. Be5 {[%emt 0:08:46]} Qe8 {[%emt 0:00:00]} 32. Rxd7+ {[%emt 0:00:49]} Kxd7 {[%emt 0:00:00]} 33. Rc7+ {[%emt 0:00:29]} Kd8 {[%emt 0:00:00] [#]} 34. Qxe8+ $1 {[%emt 0:00:34]} (34. Rf7 $2 Qa4 $19) 34... Rxe8 {[%emt 0:00:00]} 35. Rh7 {[%emt 0:00:16]} Bxa2 {[%emt 0:00:00]} 36. Bc7+ {[%emt 0:00:45]} (36. Rxh6 Kd7 37. h5 Re7) ({White should try} 36. Bf6+ Kc8 37. Rxh6) 36... Kc8 $16 {[%emt 0:00:00]} 37. Bxb6 {[%emt 0:00:04]} (37. h5 $16) 37... e5 $1 $14 {[%emt 0:00:00]} 38. dxe5 {[%emt 0:00:43]} Rxe5 {[%emt 0:01:22]} 39. Rc7+ {[%emt 0:00:19]} ({Reject} 39. Rxh6 Re1+ 40. Kg2 (40. Kh2 $2 Bd5 $19) 40... Bd5+ 41. f3 gxf3+ (41... Bxf3+ $2 42. Kf2 $19) 42. Kf2 Re2+ 43. Kf1 Rxb2 $15) (39. Be3 $14) 39... Kb8 $11 {[%emt 0:00:04]} 40. Rc1 {[%emt 0:00:06]} Re2 {[%emt 0:00:54]} 41. b4 {[%emt 0:00:44]} h5 {[%emt 0:00:16]} 42. Kf1 {[%emt 0:00:59]} Re4 {[%emt 0:00:19]} 43. Bc5 {[%emt 0:00:27]} Bc4+ {[%emt 0:01:11]} 44. Kg2 {[%emt 0:00:28]} Kb7 {[%emt 0:00:17]} 45. Rc3 {[%emt 0:00:41]} Kc6 {[%emt 0:00:58]} (45... Bd5 $5 46. Kf1 $8 Kc6 $11) 46. Bf8 {[%emt 0:00:18]} Kd5 {[%emt 0:04:55]} 47. Re3 {[%emt 0:00:35]} Rd4 {[%emt 0:00:03]} 48. Re8 {[%emt 0:00:03]} Kc6 {[%emt 0:00:14]} 49. Rc8+ {[%emt 0:01:03]} Kd7 {[%emt 0:02:07]} 50. Rc5 $1 {[%emt 0:00:01]} Ke6 {[%emt 0:00:37]} 51. f4 {[%emt 0:00:46]} (51. Rc7 $11 {remains equal.}) 51... Bd5+ {[%emt 0:00:20]} (51... Rd2+ $142 52. Kg1 Bd5) 52. Kf2 $17 {[%emt 0:00:28]} Rd3 {[%emt 0:01:38]} 53. Ra5 {[%emt 0:00:46]} Rf3+ {[%emt 0:00:11]} 54. Ke1 {[%emt 0:00:04]} Rxg3 {[%emt 0:00:38]} (54... Be4 $17 55. Rxa6+ Kd5 56. Ra5+ Kc4) 55. Rxa6+ $15 {[%emt 0:00:01]} Kf7 {[%emt 0:00:13]} 56. Bc5 $1 {[%emt 0:00:06]} Rf3 {[%emt 0:00:39]} 57. Rh6 {[%emt 0:00:54]} Rxf4 {[%emt 0:01:07]} (57... g3 {is interesting.} 58. Rxh5 Rxf4 59. Rg5 g2) 58. Rxh5 {[%emt 0:00:01]} Bc4 {[%emt 0:01:37]} (58... g3 {keeps more tension.} 59. Rg5 g2 60. h5 Rf1+) 59. Rh7+ {[%emt 0:00:50]} Kg6 {[%emt 0:00:26]} 60. Rd7 $2 {[%emt 0:00:06][%mdl 8192]} (60. Rh8 $15) 60... g3 $19 {[%emt 0:01:04]} 61. Rd4 $2 {[%emt 0:00:39] [#]} (61. Kd2 $19) 61... Rxd4 $1 {[%emt 0:03:51]} 62. Bxd4 {[%emt 0:00:01]} f4 {[%emt 0:00:40]} 63. Be5 {[%emt 0:00:37]} Kf5 {[%emt 0:00:03]} 64. Bd6 {[%emt 0:00:13]} Kg4 {[%emt 0:00:08]} 65. h5 {[%emt 0:00:37]} f3 {[%emt 0:00:03]} ({And not} 65... Kxh5 66. Bxf4 Kg4 67. Bd6 $11) 66. Bc5 {[%emt 0:00:07]} Kxh5 {[%emt 0:00:08]} 0-1

[Event "Charlotte CC Fall GM-ALTO 2024"]
[Site "Charlotte"]
[Date "2024.11.25"]
[Round "6.3"]
[White "Wang, Tianqi"]
[Black "Stefanov, Emil"]
[Result "1-0"]
[ECO "E14"]
[WhiteElo "2323"]
[BlackElo "2362"]
[Annotator "RC"]
[PlyCount "101"]
[EventDate "2024.11.22"]
[EventType "tourn"]
[EventCountry "USA"]
[SourceTitle "playchess.com"]
[Source "ChessBase"]
[SourceQuality "1"]
[TimeControl "5400+30"]

1. d4 {[%emt 0:00:20]} Nf6 {[%emt 0:00:14]} 2. Nf3 {[%emt 0:00:05]} d5 {[%emt 0:00:06]} 3. c4 {[%emt 0:00:06]} e6 {[%emt 0:00:06]} 4. e3 {[%emt 0:00:05]} Be7 {[%emt 0:02:04]} 5. b3 {[%emt 0:00:07]} O-O {[%emt 0:00:07]} 6. Bd3 {[%emt 0:00:04]} b6 {[%emt 0:00:25]} 7. O-O {[%emt 0:00:08]} Bb7 {[%emt 0:00:06]} 8. Bb2 {[%emt 0:00:09]} c5 {[%emt 0:00:16]} 9. cxd5 {[%emt 0:01:43]} exd5 {[%emt 0:01:34]} 10. Nc3 {[%emt 0:00:44]} Nbd7 {[%emt 0:07:21]} 11. Rc1 {[%emt 0:00:31]} Re8 {[%emt 0:00:48]} 12. Qe2 {[%emt 0:00:23]} a6 {[%emt 0:02:09]} 13. Rfd1 {[%emt 0:00:19]} Bd6 {[%emt 0:13:46]} 14. Bf5 {[%emt 0:01:36]} Nf8 {[%emt 0:02:02]} 15. Rc2 {[%emt 0:19:55]} g6 {[%emt 0:02:14]} 16. Bh3 {[%emt 0:02:58]} Ne6 {[%emt 0:00:39]} 17. Bxe6 {[%emt 0:00:40]} Rxe6 {[%emt 0:01:14]} 18. dxc5 {[%emt 0:02:26]} bxc5 {[%emt 0:00:12]} 19. Na4 {[%emt 0:00:56]} Nd7 {[%emt 0:18:48]} 20. Ba3 {[%emt 0:01:37]} Rc8 {[%emt 0:02:12]} 21. Rdc1 {[%emt 0:20:59]} Qf8 {[%emt 0:00:28]} 22. Qd1 {[%emt 0:01:10]} Rf6 {[%emt 0:08:56]} 23. Nd2 {[%emt 0:03:06]} Rf5 {[%emt 0:10:02]} 24. Nf1 {[%emt 0:00:45]} Rh5 {[%emt 0:02:15]} 25. f4 {[%emt 0:02:17]} d4 {[%emt 0:00:46]} 26. Rf2 {[%emt 0:03:11]} dxe3 {[%emt 0:06:39]} 27. Nxe3 {[%emt 0:00:16]} Nf6 {[%emt 0:02:19]} 28. Bb2 {[%emt 0:16:07]} Ne4 {[%emt 0:16:42]} 29. Rf3 {[%emt 0:01:19]} Rd8 {[%emt 0:00:00]} 30. Qc2 {[%emt 0:01:01]} Qe7 {[%emt 0:00:00]} 31. Nc4 {[%emt 0:13:11]} Qh4 {[%emt 0:00:10]} 32. g3 {[%emt 0:02:53]} Qg4 {[%emt 0:00:29]} 33. Rd3 {[%emt 0:02:35]} Be7 {[%emt 0:01:18]} 34. Ne5 {[%emt 0:01:00]} Qe6 {[%emt 0:00:31]} 35. Rxd8+ {[%emt 0:02:18]} Bxd8 {[%emt 0:00:01]} 36. Rd1 {[%emt 0:00:10]} Bf6 {[%emt 0:00:41]} 37. Nxc5 {[%emt 0:00:38]} Nxc5 {[%emt 0:00:40]} 38. Qxc5 {[%emt 0:00:02]} Qh3 {[%emt 0:00:06]} 39. Qf2 {[%emt 0:00:46]} Qc8 {[%emt 0:00:40]} 40. Nd7 {[%emt 0:00:16]} Bxb2 {[%emt 0:00:42]} 41. Qxb2 {[%emt 0:00:05]} Qc6 {[%emt 0:00:25]} 42. Nf6+ {[%emt 0:00:38]} Kg7 {[%emt 0:00:45]} 43. Nxh5+ {[%emt 0:01:32]} Kh6 {[%emt 0:00:01]} 44. Qg7+ {[%emt 0:00:37]} Kxh5 {[%emt 0:00:01]} 45. Qxh7+ {[%emt 0:00:31]} Kg4 {[%emt 0:00:01]} 46. Qh4+ {[%emt 0:00:07]} Kf3 {[%emt 0:02:29]} 47. Rf1+ {[%emt 0:00:14]} Ke3 {[%emt 0:00:00]} 48. Qe7+ {[%emt 0:00:09]} Kd2 {[%emt 0:00:00]} 49. Qe1+ {[%emt 0:00:31]} Kd3 {[%emt 0:00:00]} 50. Qd1+ {[%emt 0:00:06]} Kc3 {[%emt 0:00:15]} 51. Qc1+ {[%emt 0:00:22]} 1-0

[Event "Charlotte CC Fall GM-ALTO 2024"]
[Site "Charlotte"]
[Date "2024.11.25"]
[Round "6.4"]
[White "Griffith, Kyron"]
[Black "Padmini, Rout"]
[Result "0-1"]
[ECO "B48"]
[WhiteElo "2407"]
[BlackElo "2334"]
[Annotator "RC"]
[PlyCount "48"]
[EventDate "2024.11.22"]
[EventType "tourn"]
[EventCountry "USA"]
[SourceTitle "playchess.com"]
[Source "ChessBase"]
[SourceQuality "1"]
[TimeControl "5400+30"]

1. e4 {[%emt 0:01:07]} c5 {[%emt 0:00:14]} 2. Nf3 {[%emt 0:00:06]} e6 {[%emt 0:00:38]} 3. d4 {[%emt 0:00:12]} cxd4 {[%emt 0:00:05]} 4. Nxd4 {[%emt 0:00:04]} Nc6 {[%emt 0:00:06]} 5. Nc3 {[%emt 0:00:11]} Qc7 {[%emt 0:00:18]} 6. Be3 {[%emt 0:00:24]} a6 {[%emt 0:00:09]} 7. Qf3 {[%emt 0:00:17]} h5 {[%emt 0:01:11]} 8. O-O-O {[%emt 0:08:00]} b5 {[%emt 0:01:35]} 9. Nxc6 {[%emt 0:05:31]} Qxc6 {[%emt 0:00:13]} 10. Bd3 {[%emt 0:02:57]} Bb7 {[%emt 0:07:58]} 11. Rhe1 {[%emt 0:02:02]} Qc7 {[%emt 0:23:28]} 12. Bf4 {[%emt 0:06:38]} d6 {[%emt 0:01:18]} 13. Bg5 {[%emt 0:17:17]} b4 {[%emt 0:01:58]} 14. Nd5 {[%emt 0:13:25]} exd5 {[%emt 0:04:17]} 15. exd5+ {[%emt 0:00:11]} Be7 {[%emt 0:03:30]} 16. Rxe7+ {[%emt 0:27:27]} Nxe7 {[%emt 0:00:47]} 17. Re1 {[%emt 0:00:04]} f6 {[%emt 0:03:01]} 18. Bxf6 {[%emt 0:02:37]} gxf6 {[%emt 0:11:49]} 19. Bg6+ {[%emt 0:00:05]} Kd7 {[%emt 0:00:39]} 20. Bf5+ {[%emt 0:05:28]} Kd8 {[%emt 0:02:20]} 21. Be6 {[%emt 0:00:13]} f5 {[%emt 0:03:35]} 22. Qg3 {[%emt 0:01:09]} Rc8 {[%emt 0:02:43]} 23. Re2 {[%emt 0:01:59]} Re8 {[%emt 0:03:07]} 24. Bf7 {[%emt 0:03:08]} Bxd5 {[%emt 0:27:31]} 0-1

[Event "Charlotte CC Fall GM-ALTO 2024"]
[Site "Charlotte"]
[Date "2024.11.25"]
[Round "6.5"]
[White "Williams, Justus"]
[Black "Mitrabha, Guha"]
[Result "1-0"]
[ECO "E09"]
[WhiteElo "2355"]
[BlackElo "2511"]
[Annotator "RC"]
[PlyCount "105"]
[EventDate "2024.11.22"]
[EventType "tourn"]
[EventCountry "USA"]
[SourceTitle "playchess.com"]
[Source "ChessBase"]
[SourceQuality "1"]
[TimeControl "5400+30"]

1. Nf3 {[%emt 0:03:56]} Nf6 {[%emt 0:05:20]} 2. c4 {[%emt 0:01:07]} e6 {[%emt 0:00:14]} 3. g3 {[%emt 0:00:30]} d5 {[%emt 0:00:08]} 4. Bg2 {[%emt 0:00:15]} Be7 {[%emt 0:06:10]} 5. O-O {[%emt 0:00:39]} O-O {[%emt 0:00:16]} 6. d4 {[%emt 0:00:55]} c6 {[%emt 0:01:02]} 7. Qc2 {[%emt 0:02:41]} b6 {[%emt 0:00:37]} 8. Nbd2 {[%emt 0:00:21]} Bb7 {[%emt 0:00:56]} 9. e4 {[%emt 0:00:25]} Nbd7 {[%emt 0:00:05]} 10. e5 {[%emt 0:00:34]} Ne8 {[%emt 0:00:02]} 11. cxd5 {[%emt 0:00:26]} cxd5 {[%emt 0:00:02]} 12. Re1 {[%emt 0:00:39]} Rc8 {[%emt 0:00:06]} 13. Qd1 {[%emt 0:00:09]} Ba6 {[%emt 0:01:28]} 14. Nb1 {[%emt 0:05:47]} Bc4 {[%emt 0:04:25]} 15. h4 {[%emt 0:01:05]} Nc7 {[%emt 0:03:29]} 16. Bg5 {[%emt 0:02:11]} a5 {[%emt 0:01:08]} 17. Nc3 {[%emt 0:02:08]} Nb5 {[%emt 0:02:47]} 18. Ne2 {[%emt 0:01:08]} Bxg5 {[%emt 0:03:39]} 19. hxg5 {[%emt 0:00:56]} Qe7 {[%emt 0:03:14]} 20. a3 {[%emt 0:02:31]} Rc7 {[%emt 0:06:29]} 21. Nf4 {[%emt 0:01:36]} Rfc8 {[%emt 0:04:34]} 22. Kh2 {[%emt 0:00:51]} g6 {[%emt 0:04:19]} 23. Rh1 {[%emt 0:01:16]} Na7 {[%emt 0:00:11]} 24. Kg1 {[%emt 0:06:32]} Bb5 {[%emt 0:00:46]} 25. Bf1 {[%emt 0:05:34]} Rc2 {[%emt 0:03:57]} 26. Rb1 {[%emt 0:08:48]} a4 {[%emt 0:00:30]} 27. Nd3 {[%emt 0:03:09]} Nf8 {[%emt 0:07:20]} 28. Nb4 {[%emt 0:00:59]} R2c7 {[%emt 0:01:07]} 29. Bxb5 {[%emt 0:01:00]} Nxb5 {[%emt 0:00:01]} 30. Qxa4 {[%emt 0:00:37]} Qd7 {[%emt 0:00:29]} 31. Qd1 {[%emt 0:00:52]} Rc4 {[%emt 0:00:24]} 32. Kg2 {[%emt 0:01:15]} Qe7 {[%emt 0:00:49]} 33. Qd2 {[%emt 0:00:27]} h5 {[%emt 0:03:11]} 34. Rbd1 {[%emt 0:03:03]} Nd7 {[%emt 0:10:56]} 35. Qf4 {[%emt 0:02:17]} Qf8 {[%emt 0:00:53]} 36. Rh4 {[%emt 0:03:50]} Qg7 {[%emt 0:00:24]} 37. Qe3 {[%emt 0:03:09]} Kf8 {[%emt 0:03:26]} 38. g4 {[%emt 0:00:58]} hxg4 {[%emt 0:00:47]} 39. Rxg4 {[%emt 0:00:20]} Ke7 {[%emt 0:00:55]} 40. Rh4 {[%emt 0:00:17]} Rh8 {[%emt 0:00:16]} 41. Rdh1 {[%emt 0:00:51]} Rxh4 {[%emt 0:01:32]} 42. Rxh4 {[%emt 0:00:04]} Kd8 {[%emt 0:03:05]} 43. Nd2 {[%emt 0:01:45]} Rc8 {[%emt 0:03:00]} 44. Qb3 {[%emt 0:04:13]} Na7 {[%emt 0:04:21]} 45. Qa4 {[%emt 0:00:09]} Rc7 {[%emt 0:00:07]} 46. Rh3 {[%emt 0:00:50]} Nxe5 {[%emt 0:03:38]} 47. dxe5 {[%emt 0:00:40]} Qxe5 {[%emt 0:00:02]} 48. Nf3 {[%emt 0:00:29]} Qxb2 {[%emt 0:00:07]} 49. Nd3 {[%emt 0:01:01]} Qc3 {[%emt 0:01:32]} 50. Nde5 {[%emt 0:01:09]} Ke7 {[%emt 0:01:13]} 51. Qf4 {[%emt 0:01:01]} Kd6 {[%emt 0:00:46]} 52. Nxg6+ {[%emt 0:01:38]} Kc6 {[%emt 0:00:10]} 53. Nfe5+ {[%emt 0:00:07]} 1-0

[Event "Charlotte CC Fall GM-ALTO 2024"]
[Site "Charlotte"]
[Date "2024.11.25"]
[Round "7.2"]
[White "Padmini, Rout"]
[Black "Williams, Justus"]
[Result "1/2-1/2"]
[ECO "C67"]
[WhiteElo "2334"]
[BlackElo "2355"]
[Annotator "RC"]
[PlyCount "97"]
[EventDate "2024.11.22"]
[EventType "tourn"]
[EventCountry "USA"]
[SourceTitle "playchess.com"]
[Source "ChessBase"]
[SourceQuality "1"]
[TimeControl "5400+30"]

1. e4 {[%emt 0:02:17]} e5 {[%emt 0:01:46]} 2. Nf3 {[%emt 0:00:11]} Nc6 {[%emt 0:00:19]} 3. Bb5 {[%emt 0:00:08]} Nf6 {[%emt 0:00:55]} 4. O-O {[%emt 0:00:28]} Nxe4 {[%emt 0:01:27]} 5. d4 {[%emt 0:00:15]} Nd6 {[%emt 0:01:51]} 6. Bxc6 {[%emt 0:00:10]} dxc6 {[%emt 0:00:03]} 7. dxe5 {[%emt 0:00:08]} Nf5 {[%emt 0:00:25]} 8. Qxd8+ {[%emt 0:00:14]} Kxd8 {[%emt 0:00:03]} 9. Rd1+ {[%emt 0:01:37]} Ke8 {[%emt 0:00:21]} 10. Nc3 {[%emt 0:00:22]} h6 {[%emt 0:02:51]} 11. h3 {[%emt 0:02:00]} a5 {[%emt 0:02:50]} 12. a3 {[%emt 0:06:14]} Bc5 {[%emt 0:11:44]} 13. Ne4 {[%emt 0:15:06]} Ba7 {[%emt 0:04:33]} 14. g4 {[%emt 0:00:28]} Ne7 {[%emt 0:00:08]} 15. Ng3 {[%emt 0:00:08]} Be6 {[%emt 0:07:17]} 16. Nh5 {[%emt 0:02:29]} Kf8 {[%emt 0:00:22]} 17. Nd4 {[%emt 0:03:59]} Bd5 {[%emt 0:03:05]} 18. Be3 {[%emt 0:04:45]} g5 {[%emt 0:08:42]} 19. b3 {[%emt 0:14:11]} Ng6 {[%emt 0:07:10]} 20. e6 {[%emt 0:10:43]} Nh4 {[%emt 0:04:54]} 21. c4 {[%emt 0:03:42]} Bxd4 {[%emt 0:02:01]} 22. Bxd4 {[%emt 0:00:55]} Nf3+ {[%emt 0:00:13]} 23. Kg2 {[%emt 0:01:47]} Nxd4+ {[%emt 0:00:38]} 24. cxd5 {[%emt 0:00:28]} c5 {[%emt 0:00:56]} 25. Rac1 {[%emt 0:06:30]} Nxb3 {[%emt 0:03:14]} 26. Rc3 {[%emt 0:00:09]} a4 {[%emt 0:00:11]} 27. Rf3 {[%emt 0:04:11]} Ke7 {[%emt 0:02:00]} 28. Rxf7+ {[%emt 0:02:25]} Kd6 {[%emt 0:00:02]} 29. Rd7+ {[%emt 0:00:51]} Ke5 {[%emt 0:00:02]} 30. e7 {[%emt 0:01:43]} b5 {[%emt 0:10:43]} 31. Rxc7 {[%emt 0:01:19]} Kd6 {[%emt 0:01:35]} 32. Nf6 {[%emt 0:11:47]} Kxc7 {[%emt 0:04:27]} 33. d6+ {[%emt 0:00:04]} Kc6 {[%emt 0:00:39]} 34. d7 {[%emt 0:00:05]} Rad8 {[%emt 0:00:20]} 35. e8=Q {[%emt 0:01:12]} Rhxe8 {[%emt 0:00:30]} 36. dxe8=Q+ {[%emt 0:00:07]} Rxe8 {[%emt 0:00:13]} 37. Nxe8 {[%emt 0:00:03]} b4 {[%emt 0:00:42]} 38. axb4 {[%emt 0:00:14]} cxb4 {[%emt 0:00:56]} 39. Rd6+ {[%emt 0:01:04]} Kc5 {[%emt 0:00:41]} 40. Ra6 {[%emt 0:03:57]} a3 {[%emt 0:00:02]} 41. Nd6 {[%emt 0:01:08]} Nd2 {[%emt 0:00:02]} 42. h4 {[%emt 0:00:51]} b3 {[%emt 0:00:23]} 43. Rxa3 {[%emt 0:00:18]} Kxd6 {[%emt 0:00:01]} 44. hxg5 {[%emt 0:00:32]} hxg5 {[%emt 0:03:03]} 45. Ra6+ {[%emt 0:00:04]} Kc7 {[%emt 0:00:42]} 46. Ra4 {[%emt 0:00:33]} b2 {[%emt 0:00:13]} 47. Rb4 {[%emt 0:00:04]} b1=Q {[%emt 0:00:06]} 48. Rxb1 {[%emt 0:00:05]} Nxb1 {[%emt 0:00:04]} 49. f4 {[%emt 0:00:03]} 1/2-1/2